bitfinex/quotes_SOLUSD_20250118
["timestamp","ask_amount","ask_price","bid_price","bid_amount"]
[1737179533838,34.37021269,229.06,228.98,34.37021269]
[1737179534070,34.37021269,229.06,228.96,34.37021269]
[1737179534247,34.37021269,229.04,228.94,34.37021269]
[1737179534435,1.77116196,229.21,228.91,1.79506214]
[1737179534436,0.063,229.3,229.03,34.37021269]
[1737179534636,34.37021269,229.1,228.99,34.37021269]
[1737179534856,34.37021269,229.08,229.02,20.0]
[1737179535050,34.37021269,229.06,228.95,34.37021269]
[1737179535259,34.37021269,229.02,228.93,34.37021269]
[1737179535463,34.37021269,229.11,229.0,34.37021269]
[1737179535671,34.37021269,229.19,229.09,34.37021269]
[1737179535835,34.37021269,229.17,229.07,34.37021269]
[1737179536037,34.37021269,229.14,229.05,34.37021269]
[1737179536257,34.37021269,229.08,228.99,34.37021269]
[1737179536646,34.37021269,229.08,229.02,20.0]
[1737179536946,34.37021269,229.06,228.95,34.37021269]
[1737179537142,34.37021269,229.04,228.94,34.37021269]
[1737179537347,34.37021269,229.06,228.97,34.37021269]
[1737179537577,34.37021269,229.06,228.91,1.71906022]
[1737179537578,34.37021269,229.04,228.95,34.37021269]
[1737179537747,34.37021269,229.04,228.98,20.0]
[1737179538142,34.37021269,229.04,228.86,0.65505431]
[1737179538143,34.37021269,229.06,229.0,20.0]
[1737179538650,34.37021269,229.04,228.95,34.37021269]
[1737179538852,34.37021269,229.08,229.0,20.0]
[1737179539064,34.37021269,229.12,229.06,20.0]
[1737179539246,34.37021269,229.15,229.08,20.0]
[1737179539445,34.37021269,229.11,229.08,20.0]
[1737179539765,34.37021269,229.11,229.01,34.37021269]
[1737179540368,34.37021269,229.11,229.04,20.0]
[1737179540570,34.37021269,229.13,229.05,34.37021269]
[1737179540748,34.37021269,229.17,229.07,34.37021269]
[1737179540949,34.37021269,229.15,229.07,34.37021269]
[1737179541363,34.37021269,229.15,229.05,34.37021269]
[1737179541569,34.37021269,229.13,229.03,34.37021269]
[1737179541945,34.37021269,229.13,229.06,20.0]
[1737179542144,34.37021269,229.17,229.07,34.37021269]
[1737179542466,7.0638,229.24,228.99,5.26254888]
[1737179542467,7.0638,229.24,229.18,20.0]
[1737179542669,0.063,229.3,229.21,34.37021269]
[1737179542903,34.37021269,229.29,229.21,34.37021269]
[1737179543178,0.063,229.3,229.29,20.0]
[1737179543342,0.063,229.3,229.16,5.11943995]
[1737179543544,0.063,229.3,229.27,34.37021269]
[1737179543779,0.063,229.3,229.29,34.37021269]
[1737179544261,0.063,229.3,229.27,34.37021269]
[1737179544654,0.063,229.3,229.29,20.0]
[1737179545149,0.063,229.3,229.21,34.37021269]
[1737179545666,0.063,229.3,229.0,48.8841]
[1737179545667,34.37021269,229.27,229.17,34.37021269]
[1737179545857,0.063,229.3,229.21,34.37021269]
[1737179546246,34.37021269,229.29,229.21,34.37021269]
[1737179546656,0.063,229.3,229.26,20.0]
[1737179546854,0.063,229.3,229.28,20.0]
[1737179547060,0.063,229.3,229.29,54.37021269]
[1737179548882,0.063,229.3,229.23,34.37021269]
[1737179549061,0.063,229.3,229.21,34.37021269]
[1737179549260,34.37021269,229.27,229.19,34.37021269]
[1737179549469,34.37021269,229.27,229.17,34.37021269]
[1737179549988,34.37021269,229.25,229.15,34.37021269]
[1737179550192,34.37021269,229.23,229.15,34.37021269]
[1737179550421,34.37021269,229.23,229.13,34.37021269]
[1737179550690,34.37021269,229.23,229.15,34.37021269]
[1737179551065,34.37021269,229.27,229.2,20.0]
[1737179551283,34.37021269,229.29,229.22,20.0]
[1737179551777,0.063,229.3,229.22,20.0]
[1737179551969,0.063,229.3,229.29,20.0]
[1737179552167,0.063,229.3,229.23,34.37021269]
[1737179552366,0.063,229.3,229.25,34.37021269]
[1737179552876,0.063,229.3,229.29,34.37021269]
[1737179553287,0.063,229.3,229.29,20.0]
[1737179553672,0.063,229.3,229.29,34.37021269]
[1737179554790,0.063,229.3,229.27,34.37021269]
[1737179555603,0.063,229.3,229.23,34.37021269]
[1737179555978,34.43321269,229.3,229.21,34.37021269]
[1737179556171,34.43321269,229.3,229.19,34.37021269]
[1737179556576,34.43321269,229.3,229.21,34.37021269]
[1737179557076,0.063,229.3,229.23,34.37021269]
[1737179557412,0.063,229.3,229.28,54.37021269]
[1737179558291,0.063,229.54,229.28,54.37021269]
[1737179558292,0.063,229.54,229.32,20.0]
[1737179558611,34.37021269,229.53,229.44,34.37021269]
[1737179558778,34.37021269,229.5,229.4,34.37021269]
[1737179558981,34.37021269,229.5,229.43,20.0]
[1737179559289,34.37021269,229.46,229.38,34.37021269]
[1737179559501,34.37021269,229.44,229.36,34.37021269]
[1737179559701,34.37021269,229.44,229.39,20.0]
[1737179560419,34.37021269,229.48,229.41,20.0]
[1737179560592,34.37021269,229.42,229.34,34.37021269]
[1737179560915,34.37021269,229.42,229.32,34.37021269]
[1737179561214,34.37021269,229.38,229.3,34.37021269]
[1737179561421,34.37021269,229.36,229.26,34.37021269]
[1737179561716,34.37021269,229.38,229.28,34.37021269]
[1737179562122,1.7365,229.43,229.26,34.37021269]
[1737179562123,34.37021269,229.34,229.26,34.37021269]
[1737179562292,34.37021269,229.36,229.31,20.0]
[1737179562492,41.64281269,229.42,229.35,20.0]
[1737179563508,41.64281269,229.42,229.32,34.37021269]
[1737179563709,34.37021269,229.4,229.3,34.37021269]
[1737179563910,34.37021269,229.4,229.35,20.0]
[1737179564603,34.37021269,229.38,229.28,34.37021269]
[1737179564812,34.37021269,229.36,229.26,34.37021269]
[1737179565198,34.37021269,229.36,229.31,20.0]
[1737179565458,34.37021269,229.38,229.33,20.0]
[1737179565633,34.37021269,229.39,229.33,20.0]
[1737179566232,34.37021269,229.37,229.28,34.37021269]
[1737179566531,34.37021269,229.35,229.26,34.37021269]
[1737179567094,34.37021269,229.39,229.3,34.37021269]
[1737179569020,34.37021269,229.36,229.25,34.37021269]
[1737179569230,34.37021269,229.4,229.34,20.0]
[1737179570118,41.64281269,229.42,229.36,20.0]
[1737179570433,41.64281269,229.42,229.29,34.37021269]
[1737179570434,34.37021269,229.38,229.29,34.37021269]
[1737179570606,34.37021269,229.38,229.32,20.0]
[1737179572028,10.8946,229.48,229.2,5.11943995]
[1737179572029,34.37021269,229.47,229.39,20.0]
[1737179572235,34.37021269,229.49,229.43,20.0]
[1737179574315,34.37021269,229.44,229.35,34.37021269]
[1737179575029,34.37021269,229.44,229.27,5.11943995]
[1737179575335,34.37021269,229.42,229.33,34.37021269]
[1737179575921,34.37021269,229.42,229.36,20.0]
[1737179576538,7.2273,229.5,229.27,34.37021269]
[1737179576539,34.37021269,229.38,229.27,34.37021269]
[1737179576829,34.37021269,229.38,229.29,34.37021269]
[1737179577024,34.37021269,229.41,229.32,54.37021269]
[1737179577222,34.37021269,229.41,229.26,5.48938935]
[1737179577223,34.37021269,229.37,229.28,34.37021269]
[1737179577830,34.37021269,229.37,229.23,6.88665462]
[1737179578030,34.37021269,229.37,229.3,19.5]
[1737179578434,34.37021269,229.31,229.21,34.37021269]
[1737179579014,34.37021269,229.29,229.19,34.37021269]
[1737179579216,34.37021269,229.23,229.13,34.37021269]
[1737179579435,34.37021269,229.19,229.11,34.37021269]
[1737179580147,34.37021269,229.17,229.08,5.48938935]
[1737179580319,34.37021269,229.15,229.08,5.48938935]
[1737179580647,34.37021269,229.15,229.06,0.03]
[1737179580850,34.37021269,229.13,229.06,0.03]
[1737179581032,34.37021269,229.11,229.06,0.03]
[1737179581342,34.37021269,229.11,229.07,20.0]
[1737179581522,34.37021269,229.09,229.06,0.03]
[1737179581724,34.37021269,229.07,229.06,0.03]
[1737179583645,7.2273,229.13,229.07,20.0]
[1737179583830,36.08911269,229.17,229.11,20.0]
[1737179584020,36.08911269,229.17,229.06,0.03]
[1737179584021,7.2273,229.22,229.17,20.0]
[1737179584236,7.2273,229.22,229.06,0.03]
[1737179584237,34.37021269,229.18,229.06,0.03]
[1737179584551,34.37021269,229.15,229.06,0.03]
[1737179584730,34.37021269,229.15,229.09,20.0]
[1737179585240,34.37021269,229.17,229.11,20.0]
[1737179585732,34.37021269,229.13,229.06,0.03]
[1737179586147,34.37021269,229.13,229.07,20.0]
[1737179587360,34.37021269,229.13,229.06,0.03]
[1737179587559,17.6218,229.3,229.11,34.37021269]
[1737179587740,34.37021269,229.24,229.15,34.37021269]
[1737179588239,34.37021269,229.22,229.16,20.0]
[1737179588433,34.37021269,229.27,229.16,54.37021269]
[1737179588946,34.37021269,229.33,229.24,34.37021269]
[1737179589137,6.7191,229.38,229.32,20.0]
[1737179589461,6.7191,229.38,229.24,5.48938935]
[1737179589462,34.37021269,229.41,229.34,20.0]
[1737179590162,34.37021269,229.41,229.24,5.48938935]
[1737179590163,34.37021269,229.48,229.39,34.37021269]
[1737179590365,34.37021269,229.44,229.35,34.37021269]
[1737179590559,7.72997248,229.5,229.46,20.0]
[1737179590755,7.72997248,229.5,229.38,20.0]
[1737179590939,2.57790083,229.47,229.38,20.0]
[1737179591142,2.57790083,229.47,229.29,5.48938935]
[1737179591444,2.57790083,229.47,229.29,7.26214706]
[1737179591677,2.57790083,229.47,229.29,5.48938935]
[1737179591966,34.37021269,229.41,229.33,34.37021269]
[1737179592268,34.37021269,229.43,229.36,20.0]
[1737179592574,34.37021269,229.4,229.34,20.0]
[1737179592745,34.37021269,229.42,229.34,20.0]
[1737179593074,34.37021269,229.4,229.34,20.0]
[1737179593859,34.37021269,229.46,229.29,5.48938935]
[1737179593860,34.37021269,229.38,229.29,5.48938935]
[1737179594172,34.37021269,229.34,229.25,34.37021269]
[1737179594540,34.37021269,229.34,229.23,39.85960204]
[1737179594964,34.37021269,229.3,229.19,34.37021269]
[1737179595149,10.8973,229.42,229.19,34.37021269]
[1737179595150,34.37021269,229.28,229.19,34.37021269]
[1737179595550,34.37021269,229.28,229.22,20.0]
[1737179595852,34.37021269,229.24,229.15,34.37021269]
[1737179596353,34.37021269,229.28,229.19,34.37021269]
[1737179597069,34.37021269,229.28,229.22,20.0]
[1737179598370,34.37021269,229.24,229.15,34.37021269]
[1737179598572,34.37021269,229.22,229.18,20.0]
[1737179598870,34.37021269,229.22,229.13,34.37021269]
[1737179599066,4.3609,229.31,229.18,20.0]
[1737179599287,34.37021269,229.25,229.15,34.37021269]
[1737179599461,34.37021269,229.33,229.22,34.37021269]
[1737179599661,34.37021269,229.33,229.27,20.0]
[1737179599959,34.37021269,229.33,229.22,34.37021269]
[1737179600168,34.37021269,229.29,229.2,34.37021269]
[1737179600358,34.37021269,229.29,229.18,34.37021269]
[1737179601076,34.37021269,229.27,229.21,20.0]
[1737179603058,34.37021269,229.27,229.17,20.0]
[1737179603244,4.3607,229.32,229.17,20.0]
[1737179603245,34.37021269,229.25,229.19,20.0]
[1737179603441,34.37021269,229.25,229.17,20.0]
[1737179603442,34.37021269,229.27,229.21,20.0]
[1737179603666,34.37021269,229.23,229.21,20.0]
[1737179604056,34.37021269,229.23,229.17,20.0]
[1737179604261,34.37021269,229.25,229.19,20.0]
[1737179604460,34.37021269,229.25,229.21,0.03]
[1737179604974,34.37021269,229.27,229.21,0.03]
[1737179605273,34.37021269,229.25,229.21,0.03]
[1737179606081,34.37021269,229.23,229.21,0.03]
[1737179606677,38.73261269,229.23,229.21,0.03]
[1737179607348,20.0,229.2,229.06,0.03]
[1737179607557,34.37021269,229.07,229.06,0.03]
[1737179608376,38.73561269,229.07,229.06,0.03]
[1737179608958,34.37021269,229.12,229.06,0.03]
[1737179609272,34.37021269,229.14,229.08,20.0]
[1737179609668,34.37021269,229.12,229.06,0.03]
[1737179609849,34.37021269,229.1,229.06,0.03]
[1737179610495,34.37021269,229.08,229.06,0.03]
[1737179610674,4.3654,229.07,229.06,0.03]
[1737179610971,4.3638,229.16,229.06,0.03]
[1737179611162,34.37021269,229.13,229.06,0.03]
[1737179611671,34.37021269,229.15,229.09,20.0]
[1737179611874,41.62391269,229.19,229.11,20.0]
[1737179612170,34.37021269,229.18,229.08,34.37021269]
[1737179612354,38.73371269,229.18,229.08,34.37021269]
[1737179612553,34.37021269,229.16,229.11,20.0]
[1737179613477,34.37021269,229.16,229.06,0.03]
[1737179613663,34.37021269,229.1,229.06,0.03]
[1737179613973,34.37021269,229.18,229.06,0.03]
[1737179613974,34.37021269,229.08,229.06,0.03]
[1737179614673,4.3654,229.07,229.06,0.03]
[1737179615271,20.0,229.04,228.96,0.03]
[1737179615482,34.37021269,228.99,228.96,0.03]
[1737179616279,1.6874,229.08,228.99,20.0]
[1737179616280,34.37021269,229.05,228.99,20.0]
[1737179616757,34.37021269,229.07,228.99,20.0]
[1737179617172,4.3645,229.12,229.01,20.0]
[1737179617377,34.37021269,229.1,229.03,20.0]
[1737179617671,34.37021269,229.06,228.97,34.37021269]
[1737179617880,34.37021269,229.04,228.96,0.03]
[1737179618079,34.37021269,229.04,228.98,20.03]
[1737179618670,34.37021269,229.01,228.98,0.03]
[1737179619262,34.37021269,228.99,228.98,0.03]
[1737179619580,34.37021269,229.01,228.98,0.03]
[1737179619963,34.37021269,229.03,228.98,0.03]
[1737179620158,34.37021269,229.01,228.98,0.03]
[1737179620378,34.37021269,228.99,228.98,0.03]
[1737179620778,40.42461269,228.99,228.96,0.03]
[1737179620958,40.42461269,228.99,228.83,0.03]
[1737179620959,34.37021269,228.97,228.83,0.03]
[1737179621289,34.37021269,228.87,228.83,0.03]
[1737179621588,34.37021269,228.84,228.83,0.03]
[1737179622294,20.0,228.77,228.69,0.03]
[1737179622477,34.37021269,228.7,228.57,40.55383495]
[1737179622654,34.37021269,228.7,228.57,6.18362226]
[1737179622859,7.2537,228.94,228.68,34.37021269]
[1737179623085,7.2537,228.94,228.76,34.37021269]
[1737179623086,34.37021269,228.84,228.76,34.37021269]
[1737179623292,34.37021269,228.82,228.74,34.37021269]
[1737179623596,34.37021269,228.8,228.69,34.37021269]
[1737179623890,34.37021269,228.8,228.74,20.0]
[1737179624190,34.37021269,228.86,228.79,20.0]
[1737179624366,34.37021269,228.84,228.74,34.37021269]
[1737179624561,34.37021269,228.8,228.7,34.37021269]
[1737179624764,34.37021269,228.8,228.69,34.37021269]
[1737179624991,34.37021269,228.78,228.72,20.0]
[1737179625390,34.37021269,228.76,228.67,34.37021269]
[1737179625575,34.37021269,228.72,228.63,34.37021269]
[1737179625962,34.37021269,228.74,228.68,20.0]
[1737179626163,34.37021269,228.71,228.61,34.37021269]
[1737179626363,1.6874,228.8,228.57,0.65591919]
[1737179626661,34.37021269,228.74,228.66,34.37021269]
[1737179626969,34.37021269,228.76,228.66,34.37021269]
[1737179627295,34.37021269,228.76,228.68,34.37021269]
[1737179627670,34.37021269,228.76,228.61,20.0]
[1737179627864,20.0,228.78,228.69,34.37021269]
[1737179628087,34.37021269,228.84,228.75,34.37021269]
[1737179628271,34.37021269,228.84,228.7,0.65575763]
[1737179628272,36.05761269,228.88,228.79,34.37021269]
[1737179628693,34.37021269,228.86,228.77,34.37021269]
[1737179629269,34.37021269,228.84,228.75,34.37021269]
[1737179629790,20.0,228.79,228.73,34.37021269]
[1737179629997,20.0,228.79,228.71,34.37021269]
[1737179630175,20.0,228.77,228.69,34.37021269]
[1737179630367,20.0,228.75,228.69,34.37021269]
[1737179630992,20.0,228.75,228.68,34.37021269]
[1737179631491,34.37021269,228.78,228.68,34.37021269]
[1737179632270,20.0,228.73,228.66,34.37021269]
[1737179632589,20.0,228.7,228.64,34.37021269]
[1737179632795,15.63471276,228.7,228.62,34.37021269]
[1737179633095,4.3713,228.76,228.62,34.37021269]
[1737179633306,7.0088,228.77,228.7,34.37021269]
[1737179633479,34.37021269,228.81,228.72,34.37021269]
[1737179633803,11.3768,228.94,228.79,34.37021269]
[1737179634101,4.3681,228.93,228.81,34.37021269]
[1737179634269,34.37021269,228.88,228.78,34.37021269]
[1737179634780,34.37021269,228.9,228.76,20.0]
[1737179635094,34.37021269,228.84,228.74,34.37021269]
[1737179636096,34.37021269,228.82,228.72,34.37021269]
[1737179636268,34.37021269,228.8,228.72,34.37021269]
[1737179636470,34.37021269,228.8,228.7,34.37021269]
[1737179636691,34.37021269,228.73,228.53,0.65578499]
[1737179636878,34.37021269,228.71,228.62,34.37021269]
[1737179637283,34.37021269,228.75,228.66,34.37021269]
[1737179637595,34.37021269,228.77,228.68,34.37021269]
[1737179637769,34.37021269,228.75,228.66,34.37021269]
[1737179638169,5.7,228.87,228.62,34.37021269]
[1737179638471,34.37021269,228.76,228.66,34.37021269]
[1737179638803,34.37021269,228.78,228.68,34.37021269]
[1737179639701,34.37021269,228.76,228.68,34.37021269]
[1737179639887,34.37021269,228.76,228.66,34.37021269]
[1737179640301,34.37021269,228.76,228.6,2.44671097]
[1737179640302,34.37021269,228.76,228.69,20.0]
[1737179640595,43.14301269,228.88,228.75,34.37021269]
[1737179640895,43.14301269,228.88,228.69,0.65580239]
[1737179640896,43.14301269,228.88,228.78,34.37021269]
[1737179641399,17.473084,228.91,228.82,34.37021269]
[1737179641603,17.473084,228.91,228.76,34.37021269]
[1737179641604,0.063,228.88,228.86,34.37021269]
[1737179642107,0.0042,228.88,228.86,34.37021269]
[1737179642274,0.0042,228.88,228.84,34.37021269]
[1737179642601,0.0042,228.88,228.82,34.37021269]
[1737179642898,34.37021269,228.85,228.76,34.37021269]
[1737179643075,0.0042,228.88,228.84,34.37021269]
[1737179643274,0.0042,228.88,228.87,34.37021269]
[1737179643578,0.063,228.97,228.9,20.0]
[1737179643776,0.063,228.97,228.96,34.37021269]
[1737179643979,0.063,228.97,228.91,34.37021269]
[1737179644201,0.063,228.97,228.89,34.37021269]
[1737179644504,34.43321269,228.97,228.87,34.37021269]
[1737179644671,34.37021269,228.93,228.83,34.37021269]
[1737179644872,4.4304,228.97,228.79,34.37021269]
[1737179644873,34.37021269,228.89,228.79,34.37021269]
[1737179645186,34.37021269,228.93,228.83,34.37021269]
[1737179645502,34.37021269,228.91,228.81,34.37021269]
[1737179645880,0.063,228.97,228.89,34.37021269]
[1737179646082,38.80071269,228.97,228.87,34.37021269]
[1737179646396,34.37021269,228.95,228.85,34.37021269]
[1737179646579,34.37021269,228.93,228.83,34.37021269]
[1737179646976,34.37021269,228.93,228.79,20.0]
[1737179647175,34.37021269,228.93,228.84,34.37021269]
[1737179647381,34.37021269,228.95,228.86,34.37021269]
[1737179648105,34.37021269,228.93,228.84,34.37021269]
[1737179648275,34.37021269,228.93,228.82,34.37021269]
[1737179648919,34.37021269,228.91,228.8,34.37021269]
[1737179649407,34.37021269,228.91,228.82,34.37021269]
[1737179650077,34.37021269,228.86,228.78,34.37021269]
[1737179650576,34.37021269,228.9,228.8,34.37021269]
[1737179650783,34.37021269,228.92,228.82,34.37021269]
[1737179650992,34.37021269,228.9,228.8,34.37021269]
[1737179651305,15.2864,228.96,228.78,34.37021269]
[1737179651306,34.37021269,228.88,228.78,34.37021269]
[1737179651905,4.3691,228.88,228.69,11.40906257]
[1737179652101,6.7064,228.84,228.75,34.37021269]
[1737179652411,34.37021269,228.83,228.73,34.37021269]
[1737179653018,34.37021269,228.81,228.71,34.37021269]
[1737179653204,34.37021269,228.77,228.65,0.03]
[1737179653408,34.37021269,228.73,228.65,0.03]
[1737179653591,34.37021269,228.71,228.65,0.03]
[1737179653794,34.37021269,228.69,228.65,0.03]
[1737179654097,34.37021269,228.71,228.65,0.03]
[1737179654291,34.37021269,228.73,228.65,0.03]
[1737179654806,38.74231269,228.73,228.65,0.03]
[1737179654989,34.37021269,228.76,228.66,34.37021269]
[1737179655185,34.37021269,228.72,228.65,0.03]
[1737179655388,34.37021269,228.7,228.65,0.03]
[1737179655796,34.37021269,228.72,228.65,0.03]
[1737179656001,34.37021269,228.74,228.65,0.03]
[1737179656397,34.37021269,228.76,228.68,34.37021269]
[1737179656708,34.37021269,228.78,228.68,34.37021269]
[1737179657014,34.37021269,228.76,228.68,34.37021269]
[1737179657202,34.37021269,228.8,228.72,34.37021269]
[1737179657514,41.07661269,228.84,228.74,34.37021269]
[1737179658010,6.7064,228.84,228.74,34.37021269]
[1737179658315,34.37021269,228.82,228.72,34.37021269]
[1737179658515,34.37021269,228.8,228.72,34.37021269]
[1737179659107,5.81332611,228.83,228.74,34.37021269]
[1737179659827,2.58374174,228.82,228.74,34.37021269]
[1737179660123,2.58374174,228.82,228.76,34.37021269]
[1737179660537,2.58374174,228.82,228.78,34.37021269]
[1737179660718,2.58374174,228.82,228.8,34.37021269]
[1737179661025,2.42624174,228.82,228.8,34.37021269]
[1737179661411,0.063,228.97,228.83,20.0]
[1737179661610,0.063,228.97,228.96,34.37021269]
[1737179661923,7.75122524,229.09,229.08,20.0]
[1737179662230,7.75122524,229.09,228.9,34.37021269]
[1737179662411,12.11642524,229.09,228.87,7.0783]
[1737179662617,25.20676824,229.09,228.87,7.733429]
[1737179662930,29.57196824,229.09,228.87,7.733429]
[1737179663129,20.0,229.06,228.79,12.59416773]
[1737179663431,20.0,229.06,228.72,8.22949757]
[1737179663432,34.37021269,228.93,228.84,34.37021269]
[1737179663613,34.37021269,228.91,228.72,15.30779757]
[1737179663941,34.37021269,228.93,228.84,34.37021269]
[1737179664226,34.37021269,228.89,228.8,34.37021269]
[1737179664420,34.37021269,228.91,228.8,34.37021269]
[1737179664622,6.8323,228.87,228.78,34.37021269]
[1737179664928,34.37021269,228.84,228.74,34.37021269]
[1737179665426,34.37021269,228.84,228.76,34.37021269]
[1737179666025,6.8323,228.87,228.78,34.37021269]
[1737179666237,34.37021269,228.86,228.76,34.37021269]
[1737179666402,6.8323,228.87,228.8,34.37021269]
[1737179666833,34.37021269,228.92,228.82,34.37021269]
[1737179667020,34.37021269,228.94,228.84,34.37021269]
[1737179667743,34.37021269,228.94,228.77,0.65535831]
[1737179667909,34.37021269,228.9,228.82,34.37021269]
[1737179668604,4.3677,228.95,228.82,34.37021269]
[1737179668605,34.37021269,228.92,228.82,34.37021269]
[1737179668915,34.37021269,228.9,228.8,34.37021269]
[1737179669110,34.37021269,228.92,228.82,34.37021269]
[1737179669436,3.24151278,228.91,228.82,34.37021269]
[1737179669933,3.24151278,228.91,228.88,34.37021269]
[1737179670132,3.24151278,228.91,228.9,34.37021269]
[1737179670330,3.24151278,228.91,228.9,68.74042538]
[1737179670640,3.24151278,228.91,228.86,34.37021269]
[1737179670818,20.0,228.9,228.66,7.73364899]
[1737179671139,34.37021269,228.85,228.74,34.37021269]
[1737179671441,34.37021269,228.83,228.74,34.37021269]
[1737179671612,34.37021269,228.83,228.72,34.37021269]
[1737179672211,34.37021269,228.8,228.7,34.37021269]
[1737179672428,34.37021269,228.76,228.66,34.37021269]
[1737179672734,34.37021269,228.74,228.65,0.03]
[1737179673219,34.37021269,228.7,228.65,0.03]
[1737179673418,34.37021269,228.68,228.65,0.03]
[1737179673730,34.37021269,228.66,228.65,0.03]
[1737179674110,34.37021269,228.66,228.52,0.03]
[1737179674322,34.37021269,228.61,228.52,34.40021269]
[1737179674646,54.37021269,228.53,228.52,0.03]
[1737179674945,20.0,228.49,228.42,0.03]
[1737179675127,34.37021269,228.43,228.42,0.03]
[1737179675432,34.37021269,228.45,228.42,0.03]
[1737179675833,34.37021269,228.43,228.42,0.03]
[1737179676216,34.37021269,228.43,228.3,26.19079028]
[1737179676217,20.0,228.4,228.3,0.03]
[1737179676420,34.37021269,228.37,228.3,0.03]
[1737179676621,34.37021269,228.35,228.3,0.03]
[1737179677026,34.37021269,228.37,228.3,0.03]
[1737179677538,34.37021269,228.39,228.3,0.03]
[1737179677719,34.37021269,228.45,228.35,34.37021269]
[1737179677923,34.37021269,228.43,228.33,34.37021269]
[1737179678125,34.37021269,228.39,228.3,0.03]
[1737179678315,34.37021269,228.41,228.31,34.37021269]
[1737179678518,34.37021269,228.41,228.33,34.37021269]
[1737179678729,34.37021269,228.43,228.33,34.37021269]
[1737179678922,34.37021269,228.41,228.33,34.37021269]
[1737179679128,34.37021269,228.41,228.31,34.37021269]
[1737179679420,34.37021269,228.47,228.37,34.37021269]
[1737179679837,34.37021269,228.45,228.35,34.37021269]
[1737179680836,34.37021269,228.43,228.33,34.37021269]
[1737179681042,34.37021269,228.4,228.3,0.03]
[1737179681223,34.37021269,228.38,228.3,0.03]
[1737179681428,34.37021269,228.36,228.3,0.03]
[1737179682844,32.90053395,228.35,228.3,0.03]
[1737179683248,32.90053395,228.33,228.3,0.03]
[1737179683549,32.90053395,228.31,228.3,0.03]
[1737179684050,32.90053395,228.31,228.21,3.9418]
[1737179684357,32.90053395,228.26,228.18,4.3823]
[1737179684550,32.90053395,228.26,228.18,37.28283395]
[1737179684850,32.90053395,228.28,228.2,32.90053395]
[1737179685043,32.90053395,228.28,228.18,37.28283395]
[1737179685256,32.90053395,228.26,228.18,37.28283395]
[1737179685622,32.90053395,228.22,228.16,4.3827]
[1737179685953,32.90053395,228.2,228.16,4.3827]
[1737179686253,32.90053395,228.2,228.14,4.3831]
[1737179686929,32.90053395,228.18,228.08,32.90053395]
[1737179687350,32.90053395,228.16,228.08,32.90053395]
[1737179687644,32.90053395,228.16,228.06,32.90053395]
[1737179687829,32.90053395,228.12,228.04,37.28563395]
[1737179688428,32.90053395,228.14,228.06,32.90053395]
[1737179688853,32.90053395,228.17,228.08,32.90053395]
[1737179689144,32.90053395,228.15,228.07,4.3846]
[1737179689343,32.90053395,228.17,228.08,32.90053395]
[1737179689531,32.90053395,228.15,228.07,4.3846]
[1737179690150,32.90053395,228.15,228.06,32.90053395]
[1737179690565,28.4740269,228.33,228.12,32.90053395]
[1737179690566,32.90053395,228.21,228.12,32.90053395]
[1737179690737,11.1019,228.33,228.08,4.3844]
[1737179691056,32.90053395,228.23,228.14,32.90053395]
[1737179691222,20.0,228.3,228.14,32.90053395]
[1737179691420,32.90053395,228.22,228.12,32.90053395]
[1737179691625,32.90053395,228.2,228.1,32.90053395]
[1737179691842,32.90053395,228.2,228.08,4.3844]
[1737179691843,11.1019,228.33,228.12,32.90053395]
[1737179692056,32.90053395,228.25,228.17,32.90053395]
[1737179692422,32.90053395,228.29,228.19,32.90053395]
[1737179692651,32.90053395,228.26,228.17,32.90053395]
[1737179692858,32.90053395,228.24,228.15,32.90053395]
[1737179693246,20.0,228.13,228.04,0.89912877]
[1737179693556,32.90053395,228.05,227.9,32.90053395]
[1737179693860,32.90053395,227.98,227.86,32.90053395]
[1737179694028,32.90053395,228.0,227.88,32.90053395]
[1737179694222,32.90053395,227.98,227.88,32.90053395]
[1737179694426,0.65968632,227.97,227.88,32.90053395]
[1737179694627,0.65968632,227.97,227.81,32.90053395]
[1737179694628,0.65968632,227.97,227.86,32.90053395]
[1737179694832,32.90053395,227.96,227.86,32.90053395]
[1737179695145,66.59456371,227.96,227.59,30.603505]
[1737179695456,32.90053395,227.8,227.69,32.90053395]
[1737179695628,32.90053395,227.82,227.71,32.90053395]
[1737179695828,0.65968632,227.91,227.6,0.65853776]